bitfinex/quotes_SOLUSD_20250204
["timestamp","ask_amount","ask_price","bid_price","bid_amount"]
[1738692339186,0.25098,213.52,213.46,0.03]
[1738692340086,18.54803281,213.51,213.46,0.03]
[1738692340280,0.25098,213.5,213.46,0.03]
[1738692341316,4.6834,213.52,213.46,0.03]
[1738692341488,0.25098,213.51,213.46,0.03]
[1738692343484,4.6836,213.51,213.46,0.03]
[1738692344302,0.25098,213.5,213.46,0.03]
[1738692345087,23.74737268,213.53,213.46,0.03]
[1738692345509,0.25098,213.52,213.46,0.03]
[1738692345806,18.54803281,213.51,213.46,0.03]
[1738692346003,0.25098,213.5,213.46,0.03]
[1738692346211,13.66282853,213.48,213.46,0.03]
[1738692346507,32.97788121,213.47,213.46,0.03]
[1738692346680,26.02071507,213.47,213.46,0.03]
[1738692346880,25.89522507,213.47,213.46,0.03]
[1738692347301,30.57962507,213.47,213.46,0.03]
[1738692348606,37.53073501,213.47,213.46,0.03]
[1738692350517,20.0,213.44,213.35,0.03]
[1738692350810,0.25098,213.36,213.35,0.03]
[1738692350982,14.3043584,213.36,213.35,0.03]
[1738692351508,0.76701987,213.36,213.35,0.03]
[1738692351676,0.25098,213.36,213.35,0.03]
[1738692352310,18.54197661,213.39,213.35,0.03]
[1738692352479,4.6864,213.38,213.35,0.03]
[1738692352881,0.25098,213.37,213.35,0.03]
[1738692353218,13.66282853,213.37,213.35,0.03]
[1738692353378,13.78831853,213.36,213.35,0.03]
[1738692354486,18.47521853,213.36,213.35,0.03]
[1738692356486,18.60070853,213.36,213.35,0.03]
[1738692356886,18.60070853,213.36,213.35,0.0001]
[1738692357127,21.16100853,213.36,213.35,0.0001]
[1738692357525,21.16100853,213.36,213.28,0.063]
[1738692357526,0.12549,213.3,213.28,0.063]
[1738692357812,138.46022501,213.29,213.28,0.063]
[1738692358013,137.94418514,213.29,213.28,0.063]
[1738692358909,137.81869514,213.29,213.28,0.063]
[1738692359685,137.94418514,213.29,213.28,0.063]
[1738692360115,137.81869514,213.29,213.28,0.063]
[1738692360295,113.00480514,213.29,213.28,0.063]
[1738692361415,117.69320514,213.29,213.28,0.063]
[1738692361910,18.79295661,213.29,213.28,0.063]
[1738692362129,18.54197661,213.35,213.28,0.063]
[1738692362335,18.54197661,213.38,213.3,18.54197661]
[1738692362611,23.22817661,213.39,213.28,0.063]
[1738692362783,80.8,213.4,213.28,0.063]
[1738692362990,18.54197661,213.42,213.35,18.54197661]
[1738692363189,0.25098,213.41,213.35,18.54197661]
[1738692363429,0.12549,213.41,213.35,18.54197661]
[1738692363733,0.25098,213.41,213.35,18.54197661]
[1738692363941,0.25098,213.41,213.35,23.22907661]
[1738692364423,0.12549,213.41,213.35,18.54197661]
[1738692364633,0.25098,213.41,213.33,23.22937661]
[1738692364935,18.54197661,213.44,213.35,18.54197661]
[1738692365104,4.7476,213.47,213.39,18.54197661]
[1738692365430,0.063,213.47,213.41,18.54197661]
[1738692365635,0.25098,213.45,213.39,18.54197661]
[1738692366912,4.93598,213.45,213.39,18.54197661]
[1738692367230,0.12549,213.45,213.39,18.54197661]
[1738692367406,0.063,213.47,213.39,23.22807661]
[1738692367609,0.12549,213.45,213.39,18.54197661]
[1738692367823,18.54197661,213.44,213.37,18.54197661]
[1738692368027,18.54197661,213.4,213.34,7.6755]
[1738692368210,18.54197661,213.42,213.35,18.54197661]
[1738692368409,18.54197661,213.44,213.37,18.54197661]
[1738692368605,18.54197661,213.46,213.39,18.54197661]
[1738692369234,0.12549,213.46,213.39,18.54197661]
[1738692369408,18.66746661,213.46,213.39,18.54197661]
[1738692370012,0.12549,213.44,213.39,18.54197661]
[1738692370238,18.66746661,213.44,213.35,18.54197661]
[1738692370409,18.54197661,213.44,213.37,18.54197661]
[1738692370716,18.66746661,213.46,213.39,18.54197661]
[1738692370910,23.35216661,213.46,213.39,18.54197661]
[1738692371530,4.7475,213.47,213.39,18.54197661]
[1738692372127,0.25098,213.46,213.39,18.54197661]
[1738692372339,0.063,213.47,213.41,18.54197661]
[1738692372522,0.063,213.47,213.39,18.54197661]
[1738692372735,0.12549,213.45,213.39,18.54197661]
[1738692372911,18.54197661,213.46,213.39,18.54197661]
[1738692373107,0.12549,213.45,213.39,18.54197661]
[1738692373412,0.25098,213.45,213.37,18.54197661]
[1738692374025,0.063,213.47,213.41,18.54197661]
[1738692374227,0.063,213.47,213.45,18.54197661]
[1738692374946,0.063,213.47,213.46,18.54197661]
[1738692375237,0.063,213.47,213.46,18.79295661]
[1738692375438,80.8,213.6,213.46,18.79295661]
[1738692375439,4.7445,213.61,213.54,18.54197661]
[1738692375754,4.7445,213.61,213.59,18.54197661]
[1738692375755,0.063,213.61,213.59,18.54197661]
[1738692376032,0.063,213.61,213.6,18.54197661]
[1738692376239,0.063,213.61,213.6,23.22357661]
[1738692376618,0.063,213.61,213.6,23.47455661]
[1738692376810,0.0001,213.61,213.6,57.13047564]
[1738692377007,0.03,213.65,213.64,20.12549]
[1738692377214,0.03,213.65,213.64,18.54197661]
[1738692378749,0.03,213.65,213.62,38.54197661]
[1738692379848,0.03,213.65,213.62,18.54197661]
[1738692380146,0.03,213.65,213.58,24.62917661]
[1738692380723,0.03,213.65,213.58,29.31117661]
[1738692380934,0.03,213.65,213.62,18.54197661]
[1738692381131,0.03,213.65,213.64,18.54197661]
[1738692381334,0.03,213.65,213.62,18.54197661]
[1738692381723,0.03,213.65,213.6,18.54197661]
[1738692382657,0.28098,213.65,213.58,18.54197661]
[1738692383023,18.54197661,213.59,213.53,6.4385]
[1738692383337,18.54197661,213.59,213.51,20.17907661]
[1738692383338,18.54197661,213.59,213.51,24.86257661]
[1738692383532,18.54197661,213.61,213.53,18.54197661]
[1738692384138,0.25098,213.62,213.55,18.54197661]
[1738692384334,18.57197661,213.65,213.57,18.54197661]
[1738692384652,18.57197661,213.65,213.58,4.682]
[1738692384849,0.03,213.65,213.59,18.54197661]
[1738692385054,0.03,213.65,213.62,18.54197661]
[1738692385449,0.03,213.65,213.64,18.54197661]
[1738692386441,0.03,213.65,213.64,23.22267661]
[1738692387957,0.03,213.65,213.62,23.22297661]
[1738692388132,0.03,213.65,213.62,18.54197661]
[1738692388329,0.03,213.65,213.6,18.54197661]
[1738692388534,18.57197661,213.65,213.57,18.54197661]
[1738692389045,0.25098,213.64,213.57,18.54197661]
[1738692389251,18.54197661,213.63,213.55,18.54197661]
[1738692389836,4.6812,213.62,213.55,18.54197661]
[1738692390144,0.25098,213.58,213.5,18.54197661]
[1738692390348,18.54197661,213.57,213.5,18.54197661]
[1738692390659,18.54197661,213.57,213.49,4.6839]
[1738692391036,18.54197661,213.57,213.5,18.54197661]
[1738692391243,18.61722066,213.58,213.5,18.36624066]
[1738692391443,18.61722066,213.56,213.48,18.36624066]
[1738692392050,0.25098,213.54,213.48,18.36624066]
[1738692392359,0.25098,213.51,213.45,0.03]
[1738692393163,13.66282853,213.51,213.45,0.03]
[1738692393342,0.25098,213.49,213.45,0.03]
[1738692394063,4.93508,213.49,213.45,0.03]
[1738692394543,31.77808919,213.46,213.45,0.03]
[1738692394747,18.49173066,213.46,213.45,0.03]
[1738692394947,18.61722066,213.46,213.45,0.03]
[1738692395145,18.36624066,213.48,213.45,0.03]
[1738692395338,31.77808919,213.5,213.45,0.03]
[1738692395668,0.25098,213.47,213.45,0.03]
[1738692395970,13.66282853,213.47,213.45,0.03]
[1738692396150,32.67059906,213.46,213.45,0.03]
[1738692396769,32.79608906,213.46,213.45,0.03]
[1738692397360,32.79608906,213.46,213.45,0.0001]
[1738692397561,37.48078906,213.46,213.45,0.0001]
[1738692397868,38.48078906,213.46,213.45,0.0001]
[1738692398367,0.12549,213.41,213.3,18.36624066]
[1738692398562,0.25098,213.37,213.3,18.36624066]
[1738692398949,18.36624066,213.46,213.35,18.36624066]
[1738692399258,20.0,213.45,213.39,18.36624066]
[1738692399456,18.36624066,213.48,213.41,18.36624066]
[1738692399646,23.05024066,213.5,213.45,0.03]
[1738692400156,20.0,213.47,213.45,0.03]
[1738692400568,0.25098,213.49,213.45,0.03]
[1738692400767,18.36624066,213.55,213.47,18.36624066]
[1738692400972,20.0,213.52,213.45,18.39624066]
[1738692401274,18.61722066,213.53,213.45,18.39624066]
[1738692401459,18.61722066,213.51,213.45,0.03]
[1738692402769,23.30092066,213.51,213.45,0.03]
[1738692403155,18.36624066,213.47,213.45,0.03]
[1738692403352,0.25098,213.46,213.45,0.03]
[1738692405239,18.8635684,213.46,213.45,0.03]
[1738692405754,19.1145484,213.46,213.45,0.03]
[1738692405948,0.37647,213.42,213.33,18.36624066]
[1738692406145,18.36624066,213.39,213.31,24.68664066]
[1738692407044,18.36624066,213.37,213.29,29.42674066]
[1738692407267,0.25098,213.37,213.31,18.36624066]
[1738692407857,80.8,213.4,213.33,18.36624066]
[1738692408568,80.8,213.4,213.39,18.36624066]
[1738692408763,80.8,213.48,213.39,18.36624066]
[1738692409085,20.0,213.45,213.41,18.36624066]
[1738692409260,18.34732853,213.47,213.41,18.36624066]
[1738692410098,36.71356919,213.47,213.39,23.05244066]
[1738692410261,0.12549,213.46,213.39,18.36624066]
[1738692410460,36.71356919,213.47,213.39,18.36624066]
[1738692410766,36.71356919,213.47,213.39,23.05244066]
[1738692411083,18.36624066,213.47,213.39,4.6862]
[1738692411289,23.56608053,213.51,213.43,18.36624066]
[1738692411760,23.05004066,213.51,213.43,18.36624066]
[1738692412667,20.0,213.5,213.45,18.36624066]
[1738692413061,99.16624066,213.55,213.47,18.36624066]
[1738692413261,23.04904066,213.55,213.47,18.36624066]
[1738692413792,0.25098,213.54,213.47,18.36624066]
[1738692413985,0.25098,213.52,213.43,18.36624066]
[1738692414489,0.25098,213.52,213.45,18.36624066]
[1738692415085,4.93448,213.52,213.45,18.36624066]
[1738692415686,0.063,213.51,213.43,18.39624066]
[1738692416064,0.063,213.51,213.43,23.08144066]
[1738692416299,0.063,213.51,213.45,18.36624066]
[1738692417203,0.063,213.51,213.49,18.36624066]
[1738692418895,0.063,213.51,213.5,6.62079]
[1738692419200,4.6809,213.64,213.51,0.12549]
[1738692419380,4.6809,213.64,213.57,18.36624066]
[1738692419571,32.02906919,213.63,213.55,18.36624066]
[1738692420199,36.71016919,213.63,213.55,18.36624066]
[1738692420376,18.39624066,213.65,213.57,18.36624066]
[1738692420577,18.39624066,213.65,213.52,5.80889]
[1738692420578,0.03,213.65,213.59,18.36624066]
[1738692420775,0.03,213.65,213.6,26.47764066]
[1738692421173,0.03,213.65,213.6,26.60313066]
[1738692421369,0.03,213.65,213.6,8.23689]
[1738692421569,0.0001,213.61,213.6,41.14046919]
[1738692421875,0.0001,213.65,213.64,22.25098]
[1738692422075,0.063,213.69,213.64,54.73084569]
[1738692422282,0.063,213.69,213.68,38.49173066]
[1738692422497,0.063,213.69,213.68,38.61722066]
[1738692422799,0.063,213.69,213.68,53.02906919]
[1738692423114,0.063,213.69,213.68,52.02906919]
[1738692423786,0.063,213.69,213.68,53.02906919]
[1738692423980,0.063,213.69,213.68,52.02906919]
[1738692424183,0.063,213.69,213.68,53.02906919]
[1738692424479,0.063,213.69,213.68,56.70886919]
[1738692424878,0.063,213.69,213.68,57.70886919]
[1738692425082,0.063,213.69,213.68,56.70886919]
[1738692425702,0.063,213.69,213.68,43.29702066]
[1738692426499,0.063,213.69,213.68,43.17153066]
[1738692427108,0.063,213.69,213.68,38.36624066]
[1738692427406,0.063,213.69,213.66,18.36624066]
[1738692427779,0.063,213.69,213.68,18.36624066]
[1738692428199,0.063,213.69,213.66,18.36624066]
[1738692428508,0.063,213.69,213.62,18.36624066]
[1738692428686,13.66282853,213.66,213.58,18.36624066]
[1738692428891,0.25098,213.63,213.55,6.4897]
[1738692429087,0.25098,213.61,213.54,18.36624066]
[1738692429289,18.36624066,213.58,213.5,18.36624066]
[1738692430393,0.25098,213.57,213.5,18.36624066]
[1738692430801,18.36624066,213.56,213.48,18.36624066]
[1738692430977,18.36624066,213.58,213.5,18.36624066]
[1738692431188,18.36624066,213.58,213.5,23.04984066]
[1738692431585,18.36624066,213.58,213.5,18.36624066]
[1738692431898,23.04784066,213.6,213.52,18.36624066]
[1738692432228,0.12549,213.59,213.52,18.36624066]
[1738692432385,0.25098,213.59,213.52,18.36624066]
[1738692432881,18.36624066,213.58,213.5,18.36624066]
[1738692433298,18.36624066,213.58,213.5,23.04994066]
[1738692433611,0.25098,213.57,213.5,18.36624066]
[1738692434417,13.66282853,213.57,213.5,18.36624066]
[1738692434787,0.25098,213.55,213.46,23.05094066]
[1738692435417,18.36624066,213.54,213.46,23.05094066]
[1738692436420,0.25098,213.53,213.44,4.6849]
[1738692436714,0.25098,213.51,213.43,0.03]
[1738692436921,0.25098,213.49,213.43,0.03]
[1738692437131,18.36624066,213.46,213.43,0.03]
[1738692440410,18.36624066,213.48,213.43,0.03]
[1738692441722,18.61722066,213.44,213.43,0.03]
[1738692442222,4.6843,213.48,213.43,0.03]
[1738692442223,18.36624066,213.46,213.43,0.03]
[1738692442426,18.36624066,213.48,213.43,0.03]
[1738692442731,18.36624066,213.52,213.44,18.36624066]
[1738692443035,80.8,213.51,213.44,18.36624066]
[1738692443237,18.36624066,213.49,213.43,0.03]
[1738692443598,0.25098,213.5,213.43,18.39624066]
[1738692443927,99.16624066,213.51,213.43,18.39624066]
[1738692444225,18.36624066,213.49,213.43,0.03]
[1738692444528,4.93528,213.48,213.43,0.03]
[1738692444707,18.36624066,213.47,213.43,0.03]
[1738692444909,0.25098,213.44,213.43,0.03]
[1738692445117,13.66282853,213.44,213.43,0.03]
[1738692445301,13.78831853,213.44,213.43,0.03]
[1738692445818,13.91380853,213.44,213.43,0.03]
[1738692446529,18.59890853,213.44,213.43,0.03]
[1738692448235,4.93608,213.44,213.43,0.03]
[1738692448430,18.47341853,213.44,213.43,0.03]
[1738692451233,18.9894584,213.44,213.43,0.03]
[1738692451440,19.1149484,213.44,213.43,0.03]
[1738692454234,20.50196,213.4,213.28,1.7074]
[1738692454435,20.50196,213.4,213.28,0.063]
[1738692454436,0.25098,213.31,213.28,0.063]
[1738692454738,18.36624066,213.3,213.28,0.063]
[1738692456015,18.47671853,213.29,213.28,0.063]
[1738692456231,18.9927584,213.29,213.28,0.063]
[1738692456422,19.1182484,213.29,213.28,0.063]
[1738692457550,5.45541987,213.29,213.28,0.063]
[1738692458941,0.76701987,213.29,213.28,0.063]
[1738692459127,0.25098,213.29,213.28,0.063]
[1738692459442,4.93938,213.29,213.28,0.063]
[1738692459649,19.1182484,213.29,213.28,0.063]
[1738692461636,18.42356322,213.31,213.28,0.063]
[1738692462548,18.42356322,213.35,213.28,0.063]
[1738692462934,0.25098,213.32,213.28,0.063]
[1738692463135,0.25098,213.3,213.28,0.063]
[1738692463540,18.42356322,213.29,213.28,0.063]
[1738692463740,18.67454322,213.29,213.28,0.063]
[1738692464232,32.08639175,213.29,213.28,0.063]
[1738692465063,36.77479175,213.29,213.28,0.063]
[1738692465357,23.36294322,213.29,213.28,0.063]
[1738692466538,23.35430846,213.29,213.28,0.063]
[1738692466859,18.41492846,213.31,213.28,0.063]
[1738692467062,18.41492846,213.33,213.28,0.063]
[1738692467364,0.51603987,213.38,213.28,0.063]
[1738692467365,18.41492846,213.37,213.3,18.41492846]
[1738692468140,18.41492846,213.35,213.28,20.01532846]
[1738692468665,23.10202846,213.35,213.28,24.70392846]
[1738692468970,18.41492846,213.35,213.28,24.70392846]
[1738692470661,18.41492846,213.37,213.28,24.70392846]
[1738692470954,18.41492846,213.37,213.3,18.41492846]
[1738692471163,18.41492846,213.37,213.28,24.70392846]
[1738692471533,18.41492846,213.37,213.3,18.41492846]
[1738692471736,23.10112846,213.39,213.3,18.41492846]
[1738692473136,18.41492846,213.37,213.29,4.6884]
[1738692473344,18.41492846,213.34,213.28,1.6004]
[1738692473659,0.25098,213.33,213.28,1.6004]
[1738692473871,0.25098,213.29,213.28,0.063]
[1738692474159,13.91380853,213.29,213.28,0.063]
[1738692475052,18.60220853,213.29,213.28,0.063]
[1738692477864,18.47671853,213.29,213.28,0.063]
[1738692478746,18.60220853,213.29,213.28,0.063]
[1738692479159,0.37647,213.27,213.24,0.03]
[1738692479364,31.82677699,213.25,213.24,0.03]
[1738692479563,32.32873699,213.25,213.24,0.03]
[1738692479738,32.32873699,213.25,213.23,0.03]
[1738692479739,18.47781853,213.24,213.23,0.03]
[1738692479939,0.25098,213.2,213.13,1.6234]
[1738692480171,18.66590846,213.19,213.13,1.6234]
[1738692480339,18.66590846,213.19,213.15,0.03]
[1738692480540,18.41492846,213.21,213.15,4.7215]
[1738692480848,18.41492846,213.23,213.15,4.7215]
[1738692481153,0.25098,213.22,213.15,0.03]
[1738692481358,18.41492846,213.21,213.15,0.03]
[1738692481851,0.25098,213.2,213.15,0.03]
[1738692482174,18.66590846,213.19,213.15,0.03]
[1738692483174,32.84477686,213.19,213.15,0.03]
[1738692484078,37.40988686,213.19,213.15,0.03]
[1738692484281,18.66590846,213.19,213.15,0.03]
[1738692484578,23.35650846,213.19,213.15,0.03]
[1738692484880,36.76835699,213.19,213.15,0.03]
[1738692485052,37.01933699,213.19,213.15,0.03]
[1738692485739,20.37647,213.15,213.05,5.1383]
[1738692485943,18.41492846,213.11,213.05,5.1383]
[1738692486143,23.10732846,213.11,213.05,5.1383]
[1738692486339,18.41492846,213.07,213.03,1.5853]
[1738692486545,18.41492846,213.07,212.98,19.91992846]
[1738692486763,18.41492846,213.05,212.98,24.61512846]
[1738692488156,13.66282853,213.04,212.98,18.41492846]
[1738692488362,18.41492846,213.05,212.96,0.03]
[1738692488363,18.41492846,213.05,212.96,23.14052846]
[1738692488675,18.41492846,213.05,212.98,18.41492846]
[1738692488855,18.41492846,213.07,212.98,24.50762846]
[1738692489052,18.41492846,213.09,213.0,18.41492846]
[1738692489370,18.41492846,213.07,213.0,18.41492846]
[1738692489570,0.25098,213.06,212.98,24.50762846]
[1738692489960,18.41492846,213.05,212.98,29.20272846]
[1738692490766,18.41492846,213.07,212.98,29.20272846]
[1738692491264,18.41492846,213.05,212.98,10.7878]
[1738692491470,0.25098,213.02,212.98,6.0927]
[1738692491655,18.41492846,212.99,212.96,0.03]
[1738692491863,0.25098,213.02,212.96,0.03]
[1738692491864,18.41492846,212.97,212.96,0.03]
[1738692492361,18.66590846,212.97,212.96,0.03]
[1738692492566,37.02413699,212.97,212.96,0.03]
[1738692492872,36.89864699,212.97,212.96,0.03]
[1738692493052,18.41492846,212.97,212.96,0.03]
[1738692493753,18.41492846,212.99,212.96,0.03]
[1738692494155,18.41492846,213.05,212.97,18.41492846]
[1738692494554,18.41492846,213.07,212.99,18.41492846]
[1738692494807,18.41492846,213.09,213.01,18.41492846]
[1738692495071,18.41492846,213.11,213.03,18.41492846]
[1738692495662,0.25098,213.1,213.03,18.41492846]
[1738692495981,18.41492846,213.11,213.03,23.10892846]
[1738692496272,18.41492846,213.13,213.05,18.41492846]
[1738692496971,18.41492846,213.09,213.02,4.6942]
[1738692497176,18.41492846,213.07,213.0,4.6946]
[1738692497474,18.41492846,213.05,212.98,4.6951]
[1738692498271,18.36982636,213.05,212.98,4.6951]
[1738692498874,18.41492846,213.07,212.99,18.41492846]
[1738692499080,18.41492846,213.07,212.98,4.6951]
[1738692499081,18.41492846,213.05,212.98,4.6951]
[1738692502158,18.41492846,213.03,212.97,7.7382]
[1738692502982,18.41492846,213.03,212.97,12.4336]
[1738692503788,18.66590846,213.05,212.97,12.4336]
[1738692503959,18.41492846,213.03,212.97,12.4336]
[1738692504456,18.41492846,213.03,212.97,7.7382]
[1738692505189,0.25098,213.02,212.97,7.7382]
[1738692505384,18.41492846,213.03,212.97,7.7382]
[1738692505686,18.41492846,213.07,212.99,18.41492846]
[1738692506274,0.25098,213.06,212.99,18.41492846]
[1738692506676,18.41492846,213.07,212.99,18.41492846]
[1738692506865,0.51603987,213.13,212.99,18.41492846]
[1738692506866,18.41492846,213.14,213.05,18.41492846]
[1738692507364,18.41492846,213.15,213.07,18.41492846]
[1738692507792,0.25098,213.14,213.08,4.693]
[1738692507993,18.41492846,213.15,213.08,4.693]
[1738692508290,0.25098,213.15,213.09,18.41492846]
[1738692508465,0.25098,213.15,213.08,4.693]
[1738692509089,31.82677699,213.17,213.09,26.36582846]
[1738692509264,18.41492846,213.19,213.09,26.36582846]
[1738692509464,18.41492846,213.19,213.11,18.41492846]
[1738692510797,13.66282853,213.18,213.11,18.41492846]
[1738692510970,0.25098,213.14,213.09,7.9509]
[1738692511300,18.41492846,213.11,213.04,7.9509]
[1738692512376,18.41492846,213.11,213.04,12.6446]
[1738692512888,0.25098,213.12,213.04,12.6446]
[1738692513278,18.41492846,213.09,213.04,7.9509]
[1738692513600,18.41492846,213.07,213.01,0.03]
[1738692513910,18.41492846,213.05,213.01,0.03]
[1738692514088,18.41492846,213.07,213.01,0.03]
[1738692514294,18.41492846,213.11,213.03,18.41492846]
[1738692514614,23.10732846,213.11,213.04,4.6939]
[1738692514921,0.25098,213.1,213.04,4.6939]
[1738692515084,0.25098,213.1,213.03,18.41492846]
[1738692515278,13.66282853,213.1,213.03,18.41492846]
[1738692515477,18.41492846,213.07,213.01,0.03]
[1738692515675,0.25098,213.06,213.01,0.03]
[1738692516308,4.6937,213.05,213.01,0.03]
[1738692516493,23.10862846,213.05,213.01,0.03]
[1738692517515,18.41492846,213.07,213.01,0.03]
[1738692517697,18.41492846,213.09,213.01,18.44492846]
[1738692518197,38.41492846,213.09,213.01,18.44492846]
[1738692518379,43.10782846,213.09,213.01,23.13942846]
[1738692518580,18.41492846,213.07,213.01,0.03]
[1738692518785,18.41492846,213.05,213.01,0.03]
[1738692519691,43.10782846,213.09,213.01,4.7244]
[1738692519887,0.25098,213.06,213.01,0.03]
[1738692521113,4.94448,213.06,213.01,0.03]
[1738692522498,0.25098,213.02,213.01,0.03]
[1738692522691,13.78831853,213.02,213.01,0.03]
[1738692522892,0.25098,213.0,212.96,0.03]
[1738692523203,18.41492846,212.97,212.96,0.03]
[1738692523697,18.66590846,212.97,212.96,0.03]
[1738692524117,18.41492846,212.99,212.96,0.03]
[1738692524303,23.11012846,212.99,212.96,0.03]
[1738692524505,0.25098,212.98,212.96,0.03]
[1738692524801,18.41492846,213.01,212.96,0.03]
[1738692525006,18.41492846,213.03,212.96,18.44492846]
[1738692525795,0.25098,213.06,212.98,18.41492846]
[1738692526318,4.6926,213.1,213.04,18.41492846]
[1738692526492,18.41492846,213.15,213.06,18.41492846]
[1738692526698,18.41492846,213.15,213.08,18.41492846]
[1738692526894,18.41492846,213.12,213.04,18.41492846]
[1738692527118,0.25098,213.11,213.04,18.41492846]
[1738692527316,18.41492846,213.08,213.0,31.04552846]
[1738692527696,18.41492846,213.1,213.02,18.41492846]
[1738692528322,18.41492846,213.12,213.04,18.41492846]
[1738692528529,18.41492846,213.16,213.08,18.41492846]
[1738692528747,18.41492846,213.14,213.06,18.41492846]
[1738692529038,0.25098,213.13,213.06,18.41492846]
[1738692529336,18.41492846,213.12,213.04,18.41492846]
[1738692529831,13.66282853,213.05,212.96,0.03]
[1738692530008,18.41492846,213.0,212.96,0.03]
[1738692530520,18.41492846,213.04,212.96,0.03]
[1738692530731,18.41492846,213.04,212.97,18.41492846]
[1738692531220,23.10842846,213.06,212.97,18.41492846]
[1738692531523,0.25098,213.05,212.97,18.41492846]
[1738692531902,4.94468,213.05,212.97,23.11012846]
[1738692532815,0.25098,213.03,212.97,18.41492846]
[1738692533020,18.41492846,213.02,212.96,0.03]
[1738692534130,23.10932846,213.02,212.96,0.03]
[1738692534433,23.36000846,213.04,212.97,18.41492846]
[1738692534932,0.063,213.05,212.99,18.41492846]
[1738692536545,0.063,213.05,213.03,18.41492846]
[1738692537241,0.063,213.05,212.99,18.41492846]
[1738692538007,0.063,213.05,212.99,23.10982846]
[1738692538912,0.063,213.05,213.01,18.41492846]
[1738692539124,0.063,213.05,213.03,18.41492846]
[1738692539637,0.063,213.05,213.0,18.41492846]
[1738692540304,18.41492846,213.04,212.96,0.03]
[1738692540510,0.25098,213.03,212.96,0.03]
[1738692540841,18.41492846,213.02,212.96,0.03]
[1738692541009,4.6946,213.01,212.96,0.03]
[1738692541205,18.41492846,213.0,212.96,0.03]
[1738692542018,4.6946,213.01,212.96,0.03]
[1738692542329,18.41492846,213.04,212.97,18.41492846]
[1738692542727,0.25098,213.03,212.96,0.03]
[1738692543131,4.94518,213.03,212.96,0.03]
[1738692544116,18.41492846,213.02,212.96,0.03]
[1738692544322,18.41492846,212.98,212.96,0.03]
[1738692544624,0.25098,212.97,212.96,0.03]
[1738692544829,13.78831853,212.97,212.96,0.03]
[1738692545212,18.48371853,212.97,212.96,0.03]
[1738692546208,4.94638,212.97,212.96,0.03]
[1738692546408,18.41492846,213.0,212.96,0.03]
[1738692546609,18.41492846,212.98,212.96,0.03]
[1738692546824,13.78831853,212.97,212.96,0.03]
[1738692547222,18.35822853,212.97,212.96,0.03]
[1738692548240,11.7365,213.01,212.96,0.03]
[1738692548241,4.6947,213.01,212.96,0.03]
[1738692548547,18.66590846,213.0,212.96,0.03]
[1738692548746,13.66282853,212.97,212.96,0.03]
[1738692549544,4.94638,212.97,212.96,0.03]
[1738692549850,18.35822853,212.97,212.96,0.03]
[1738692551163,18.48371853,212.97,212.96,0.03]
[1738692551534,18.35822853,212.97,212.96,0.03]
[1738692552865,18.41492846,213.0,212.96,0.03]
[1738692553167,103.90932846,213.02,212.96,0.03]
[1738692553462,0.25098,213.01,212.96,0.03]
[1738692554966,4.94578,213.01,212.96,0.03]
[1738692555663,18.41492846,213.0,212.96,0.03]
[1738692555966,0.25098,212.99,212.96,0.03]
[1738692556142,18.41492846,212.98,212.96,0.03]
[1738692556545,13.66282853,212.97,212.96,0.03]
[1738692557471,18.35822853,212.97,212.96,0.03]
[1738692558566,18.41492846,212.98,212.96,0.03]
[1738692558567,23.11022846,212.98,212.96,0.03]
[1738692558770,4.6953,212.98,212.96,0.03]
[1738692559536,18.35782853,212.99,212.96,0.03]
[1738692560572,4.94598,212.99,212.96,0.03]
[1738692562076,13.66282853,212.97,212.96,0.03]
[1738692562549,18.35822853,212.97,212.96,0.03]
[1738692564782,18.41492846,212.98,212.96,0.03]
[1738692564958,0.12549,213.01,212.96,0.03]
[1738692564959,4.6947,213.01,212.96,0.03]
[1738692567549,18.41492846,212.98,212.96,0.03]